[Event "Titled Tuesday Blitz March 07 Early 2023"]
[White "Markus, Robert"]
[Black "Reprintsev, Alexander"]
[WhiteFideId "921637"]
[BlackFideId "14100541"]
[WhiteElo "2623"]
[BlackElo "2229"]
[Result "1/2-1/2"]
[Round "07"]
[TimeControl "180+2"]
[Date "2023.03.07"]
[WhiteClock "0:00:15"]
[BlackClock "0:00:10"]

1. e4 {[%clk 0:03:00]}  e5 {[%clk 0:02:55]} 2. Nf3 {[%clk 0:03:01]}  Nc6 {[%clk 0:02:55]} 3. Bc4 {[%clk 0:03:01]}  Nf6 {[%clk 0:02:53]} 4. d3 {[%clk 0:03:00]}  h6 {[%clk 0:02:52]} 5. c3 {[%clk 0:02:58]}  d6 {[%clk 0:02:51]} 6. O-O {[%clk 0:02:50]}  a6 {[%clk 0:02:34]} 7. d4 {[%clk 0:02:49]}  Nxe4 {[%clk 0:02:20]} 8. dxe5 {[%clk 0:02:46]}  dxe5 {[%clk 0:02:18]} 9. Qxd8+ {[%clk 0:02:36]}  Nxd8 {[%clk 0:02:18]} 10. Nxe5 {[%clk 0:02:34]}  Bc5 {[%clk 0:02:05]} 11. b4 {[%clk 0:02:17]}  Be7 {[%clk 0:02:02]} 12. Re1 {[%clk 0:02:14]}  Bf5 {[%clk 0:02:00]} 13. f3 {[%clk 0:02:11]}  Nd6 {[%clk 0:02:00]} 14. Bb3 {[%clk 0:02:06]}  O-O {[%clk 0:01:23]} 15. Nxf7 {[%clk 0:01:59]}  N8xf7 {[%clk 0:01:21]} 16. Rxe7 {[%clk 0:01:58]}  Rae8 {[%clk 0:01:19]} 17. Rxe8 {[%clk 0:01:54]}  Rxe8 {[%clk 0:01:20]} 18. Kf2 {[%clk 0:01:52]}  Bd3 {[%clk 0:01:19]} 19. Bd1 {[%clk 0:01:04]}  Nc4 {[%clk 0:01:18]} 20. Na3 {[%clk 0:00:58]}  Nfd6 {[%clk 0:01:17]} 21. Nxc4 {[%clk 0:00:56]}  Nxc4 {[%clk 0:01:17]} 22. Bf4 {[%clk 0:00:51]}  c6 {[%clk 0:01:07]} 23. h4 {[%clk 0:00:39]}  Kf8 {[%clk 0:00:47]} 24. a4 {[%clk 0:00:38]}  Nb2 {[%clk 0:00:46]} 25. Bb3 {[%clk 0:00:37]}  Re2+ {[%clk 0:00:45]} 26. Kg3 {[%clk 0:00:34]}  h5 {[%clk 0:00:15]} 27. Ra2 {[%clk 0:00:27]}  g6 {[%clk 0:00:14]} 28. Bc1 {[%clk 0:00:24]}  Nc4 {[%clk 0:00:15]} 29. Rxe2 {[%clk 0:00:24]}  Bxe2 {[%clk 0:00:15]} 30. Kf4 {[%clk 0:00:24]}  Kf7 {[%clk 0:00:14]} 31. g4 {[%clk 0:00:23]}  Kf6 {[%clk 0:00:14]} 32. Bxc4 {[%clk 0:00:21]}  Bxc4 {[%clk 0:00:13]} 33. Be3 {[%clk 0:00:21]}  b5 {[%clk 0:00:13]} 34. Bd4+ {[%clk 0:00:21]}  Kf7 {[%clk 0:00:12]} 35. a5 {[%clk 0:00:21]}  Be2 {[%clk 0:00:11]} 36. Ke4 {[%clk 0:00:16]}  hxg4 {[%clk 0:00:10]} 37. fxg4 {[%clk 0:00:17]}  Bxg4 {[%clk 0:00:10]} 38. Ke5 {[%clk 0:00:17]}  Ke7 {[%clk 0:00:09]} 39. Bc5+ {[%clk 0:00:17]}  Kd7 {[%clk 0:00:09]} 40. Kf6 {[%clk 0:00:17]}  Bh5 {[%clk 0:00:09]} 41. Bd4 {[%clk 0:00:14]}  Kc7 {[%clk 0:00:09]} 42. Be5+ {[%clk 0:00:14]}  Kd7 {[%clk 0:00:09]} 43. Bf4 {[%clk 0:00:13]}  Kc8 {[%clk 0:00:08]} 44. Ke7 {[%clk 0:00:12]}  Kb7 {[%clk 0:00:09]} 45. Kd7 {[%clk 0:00:12]}  Bf3 {[%clk 0:00:09]} 46. Kd6 {[%clk 0:00:12]}  Be4 {[%clk 0:00:09]} 47. Bg5 {[%clk 0:00:12]}  Bd3 {[%clk 0:00:09]} 48. Ke5 {[%clk 0:00:13]}  Bc2 {[%clk 0:00:09]} 49. Kf6 {[%clk 0:00:13]}  Bb1 {[%clk 0:00:09]} 50. Be3 {[%clk 0:00:12]}  Bc2 {[%clk 0:00:09]} 51. Bc5 {[%clk 0:00:13]}  Bb1 {[%clk 0:00:09]} 52. Ke7 {[%clk 0:00:13]}  Bc2 {[%clk 0:00:10]} 53. Kd7 {[%clk 0:00:14]}  Bb1 {[%clk 0:00:10]} 54. Be7 {[%clk 0:00:14]}  Bc2 {[%clk 0:00:10]} 55. Bg5 {[%clk 0:00:14]}  Bb1 {[%clk 0:00:10]} 56. Kd6 {[%clk 0:00:15]} 1/2-1/2


[Site "https://www.chess.com"]

[Event "Titled Tuesday Blitz March 07 Early 2023"]
[White "Arencibia Monduy, Antonio"]
[Black "Osinovsky, Stepan"]
[WhiteFideId "3507939"]
[BlackFideId "4157354"]
[WhiteElo "2517"]
[BlackElo "2222"]
[Result "1-0"]
[Round "07"]
[TimeControl "180+2"]
[Date "2023.03.07"]
[WhiteClock "0:00:25"]
[BlackClock "0:00:01"]

1. e4 {[%clk 0:03:00]}  e5 {[%clk 0:02:59]} 2. Bc4 {[%clk 0:03:00]}  Nc6 {[%clk 0:02:57]} 3. d3 {[%clk 0:03:00]}  Nf6 {[%clk 0:02:54]} 4. Nf3 {[%clk 0:03:00]}  Bc5 {[%clk 0:02:50]} 5. c3 {[%clk 0:02:59]}  d6 {[%clk 0:02:48]} 6. Bb3 {[%clk 0:02:58]}  h6 {[%clk 0:02:45]} 7. a4 {[%clk 0:02:55]}  a5 {[%clk 0:02:43]} 8. Na3 {[%clk 0:02:55]}  O-O {[%clk 0:02:32]} 9. Nc2 {[%clk 0:02:48]}  Kh8 {[%clk 0:02:30]} 10. Ne3 {[%clk 0:02:44]}  Nh5 {[%clk 0:02:11]} 11. O-O {[%clk 0:02:43]}  Nf4 {[%clk 0:02:08]} 12. d4 {[%clk 0:02:35]}  exd4 {[%clk 0:01:45]} 13. cxd4 {[%clk 0:02:35]}  Nxd4 {[%clk 0:01:37]} 14. Nxd4 {[%clk 0:02:27]}  Bxd4 {[%clk 0:01:33]} 15. Nd5 {[%clk 0:01:59]}  Nxd5 {[%clk 0:01:25]} 16. Qxd4 {[%clk 0:01:59]}  Nb4 {[%clk 0:01:19]} 17. Bxh6 {[%clk 0:01:55]}  f6 {[%clk 0:00:47]} 18. Be3 {[%clk 0:01:48]}  Qe7 {[%clk 0:00:42]} 19. Rfe1 {[%clk 0:01:39]}  Be6 {[%clk 0:00:41]} 20. Bd1 {[%clk 0:01:16]}  Rae8 {[%clk 0:00:21]} 21. Bd2 {[%clk 0:01:16]}  c5 {[%clk 0:00:17]} 22. Qe3 {[%clk 0:01:14]}  Bf7 {[%clk 0:00:15]} 23. Bxb4 {[%clk 0:01:09]}  axb4 {[%clk 0:00:14]} 24. Bc2 {[%clk 0:01:06]}  Qe5 {[%clk 0:00:14]} 25. Qc1 {[%clk 0:00:37]}  Re7 {[%clk 0:00:11]} 26. Bd3 {[%clk 0:00:34]}  Rfe8 {[%clk 0:00:09]} 27. Bb5 {[%clk 0:00:34]}  Rd8 {[%clk 0:00:09]} 28. Qd2 {[%clk 0:00:31]}  Kg8 {[%clk 0:00:04]} 29. Rad1 {[%clk 0:00:31]}  d5 {[%clk 0:00:03]} 30. exd5 {[%clk 0:00:30]}  Rxd5 {[%clk 0:00:03]} 31. Rxe5 {[%clk 0:00:27]}  Rxd2 {[%clk 0:00:03]} 32. Rxd2 {[%clk 0:00:27]}  Rxe5 {[%clk 0:00:01]} 33. Rd8+ {[%clk 0:00:25]}  Kh7 {[%clk 0:00:01]} 34. f3 {[%clk 0:00:25]} 1-0


[Site "https://www.chess.com"]

[Event "Titled Tuesday Blitz March 07 Early 2023"]
[White "Ansh M Shah"]
[Black "Lehtosaari, Mauri"]
[WhiteFideId "25033379"]
[BlackFideId "501999"]
[WhiteElo "2084"]
[BlackElo "2515"]
[Result "1-0"]
[Round "07"]
[TimeControl "180+2"]
[Date "2023.03.07"]
[WhiteClock "0:00:06"]
[BlackClock "0:00:01"]

1. d4 {[%clk 0:03:00]}  d5 {[%clk 0:02:55]} 2. c4 {[%clk 0:03:01]}  c6 {[%clk 0:02:55]} 3. cxd5 {[%clk 0:02:59]}  cxd5 {[%clk 0:02:54]} 4. Nc3 {[%clk 0:03:00]}  Nf6 {[%clk 0:02:54]} 5. Bf4 {[%clk 0:03:01]}  Nc6 {[%clk 0:02:54]} 6. e3 {[%clk 0:03:01]}  a6 {[%clk 0:02:55]} 7. Rc1 {[%clk 0:02:59]}  Bf5 {[%clk 0:02:53]} 8. Nf3 {[%clk 0:02:59]}  e6 {[%clk 0:02:50]} 9. Qb3 {[%clk 0:03:00]}  Ra7 {[%clk 0:02:38]} 10. Ne5 {[%clk 0:02:56]}  Nxe5 {[%clk 0:02:24]} 11. Bxe5 {[%clk 0:02:57]}  Nd7 {[%clk 0:02:24]} 12. Bg3 {[%clk 0:02:55]}  b5 {[%clk 0:01:59]} 13. Bxb5 {[%clk 0:01:48]}  axb5 {[%clk 0:01:58]} 14. Nxb5 {[%clk 0:01:49]}  Rb7 {[%clk 0:01:55]} 15. O-O {[%clk 0:01:36]}  Be7 {[%clk 0:01:23]} 16. Nd6+ {[%clk 0:01:21]}  Bxd6 {[%clk 0:01:22]} 17. Qxb7 {[%clk 0:01:21]}  Bxg3 {[%clk 0:01:20]} 18. Rc8 {[%clk 0:01:06]}  Bb8 {[%clk 0:01:04]} 19. Rfc1 {[%clk 0:00:42]}  Ke7 {[%clk 0:00:51]} 20. Rxd8 {[%clk 0:00:25]}  Rxd8 {[%clk 0:00:52]} 21. Rc8 {[%clk 0:00:24]}  Rxc8 {[%clk 0:00:40]} 22. Qxc8 {[%clk 0:00:25]}  Bd6 {[%clk 0:00:41]} 23. a3 {[%clk 0:00:18]}  Bd3 {[%clk 0:00:38]} 24. b4 {[%clk 0:00:18]}  Bb5 {[%clk 0:00:36]} 25. Qb7 {[%clk 0:00:18]}  Ba4 {[%clk 0:00:36]} 26. Qa7 {[%clk 0:00:18]}  Bb3 {[%clk 0:00:34]} 27. b5 {[%clk 0:00:18]}  Bb8 {[%clk 0:00:31]} 28. Qb7 {[%clk 0:00:17]}  Ba4 {[%clk 0:00:28]} 29. Qa6 {[%clk 0:00:15]}  Bb3 {[%clk 0:00:20]} 30. a4 {[%clk 0:00:15]}  Bc7 {[%clk 0:00:13]} 31. a5 {[%clk 0:00:15]}  Bc4 {[%clk 0:00:13]} 32. Qa7 {[%clk 0:00:12]}  Bb8 {[%clk 0:00:12]} 33. Qb7 {[%clk 0:00:11]}  Kd6 {[%clk 0:00:03]} 34. a6 {[%clk 0:00:10]}  Bc7 {[%clk 0:00:01]} 35. a7 {[%clk 0:00:10]}  Nb6 {[%clk 0:00:02]} 36. a8=Q {[%clk 0:00:09]}  Nxa8 {[%clk 0:00:02]} 37. Qxa8 {[%clk 0:00:10]}  Bxb5 {[%clk 0:00:03]} 38. Qf8+ {[%clk 0:00:11]}  Kc6 {[%clk 0:00:01]} 39. Qe8+ {[%clk 0:00:10]}  Kb6 {[%clk 0:00:01]} 40. Qxf7 {[%clk 0:00:10]}  Bd6 {[%clk 0:00:01]} 41. Qxe6 {[%clk 0:00:10]}  Kc6 {[%clk 0:00:01]} 42. Qc8+ {[%clk 0:00:09]}  Kb6 {[%clk 0:00:01]} 43. Qd8+ {[%clk 0:00:09]}  Kc6 {[%clk 0:00:01]} 44. Qe8+ {[%clk 0:00:09]}  Kb6 {[%clk 0:00:02]} 45. Qe6 {[%clk 0:00:08]}  Kc6 {[%clk 0:00:02]} 46. Qf7 {[%clk 0:00:07]}  g6 {[%clk 0:00:02]} 47. Qxh7 {[%clk 0:00:07]}  Bd3 {[%clk 0:00:02]} 48. h4 {[%clk 0:00:07]}  Bc7 {[%clk 0:00:01]} 49. h5 {[%clk 0:00:06]} 1-0


[Site "https://www.chess.com"]

[Event "Titled Tuesday Blitz March 07 Early 2023"]
[White "Saito, Vinicius"]
[Black "Osmak, Yuliia"]
[WhiteFideId "2113384"]
[BlackFideId "14101602"]
[WhiteElo "2152"]
[BlackElo "2271"]
[Result "1-0"]
[Round "07"]
[TimeControl "180+2"]
[Date "2023.03.07"]
[WhiteClock "0:00:17"]
[BlackClock "0:00:17"]

1. e4 {[%clk 0:03:00]}  d6 {[%clk 0:02:40]} 2. d4 {[%clk 0:03:00]}  Nf6 {[%clk 0:02:37]} 3. Nc3 {[%clk 0:03:00]}  e5 {[%clk 0:02:36]} 4. dxe5 {[%clk 0:02:56]}  dxe5 {[%clk 0:02:37]} 5. Qxd8+ {[%clk 0:02:55]}  Kxd8 {[%clk 0:02:38]} 6. Bg5 {[%clk 0:02:55]}  c6 {[%clk 0:02:37]} 7. O-O-O+ {[%clk 0:02:55]}  Kc7 {[%clk 0:02:37]} 8. f3 {[%clk 0:02:56]}  Be6 {[%clk 0:02:34]} 9. Be3 {[%clk 0:02:55]}  Nbd7 {[%clk 0:02:30]} 10. g3 {[%clk 0:02:55]}  Bc5 {[%clk 0:02:28]} 11. Bxc5 {[%clk 0:02:55]}  Nxc5 {[%clk 0:02:29]} 12. Bh3 {[%clk 0:02:55]}  h5 {[%clk 0:02:24]} 13. Bxe6 {[%clk 0:02:55]}  Nxe6 {[%clk 0:02:25]} 14. Nge2 {[%clk 0:02:55]}  h4 {[%clk 0:02:24]} 15. Kd2 {[%clk 0:02:46]}  Rad8+ {[%clk 0:02:11]} 16. Ke3 {[%clk 0:02:46]}  Rxd1 {[%clk 0:02:10]} 17. Rxd1 {[%clk 0:02:45]}  hxg3 {[%clk 0:02:09]} 18. hxg3 {[%clk 0:02:46]}  Rh2 {[%clk 0:02:06]} 19. Rd2 {[%clk 0:02:14]}  Rh3 {[%clk 0:02:01]} 20. Kf2 {[%clk 0:02:12]}  Rh2+ {[%clk 0:01:49]} 21. Kg1 {[%clk 0:02:12]}  Rh8 {[%clk 0:01:45]} 22. Kg2 {[%clk 0:02:12]}  b5 {[%clk 0:01:43]} 23. Nd1 {[%clk 0:02:07]}  g6 {[%clk 0:01:33]} 24. Ne3 {[%clk 0:02:07]}  a5 {[%clk 0:01:29]} 25. c3 {[%clk 0:02:07]}  a4 {[%clk 0:01:23]} 26. Nc2 {[%clk 0:01:51]}  Nc5 {[%clk 0:01:19]} 27. Nb4 {[%clk 0:01:41]}  Ne8 {[%clk 0:01:10]} 28. Nc2 {[%clk 0:01:36]}  Nd6 {[%clk 0:01:08]} 29. Ne3 {[%clk 0:01:36]}  f5 {[%clk 0:01:00]} 30. exf5 {[%clk 0:01:36]}  gxf5 {[%clk 0:01:01]} 31. Rd1 {[%clk 0:01:15]}  Rg8 {[%clk 0:00:54]} 32. Kf2 {[%clk 0:00:45]}  e4 {[%clk 0:00:53]} 33. Nf4 {[%clk 0:00:40]}  exf3 {[%clk 0:00:38]} 34. Kxf3 {[%clk 0:00:37]}  Nde4 {[%clk 0:00:39]} 35. Rg1 {[%clk 0:00:34]}  Ng5+ {[%clk 0:00:37]} 36. Ke2 {[%clk 0:00:32]}  Nce4 {[%clk 0:00:33]} 37. Nxf5 {[%clk 0:00:28]}  Re8 {[%clk 0:00:32]} 38. Kd1 {[%clk 0:00:26]}  Nf3 {[%clk 0:00:28]} 39. Rg2 {[%clk 0:00:20]}  Nc5 {[%clk 0:00:19]} 40. Nd4 {[%clk 0:00:18]}  Re1+ {[%clk 0:00:17]} 41. Kc2 {[%clk 0:00:17]} 1-0


[Site "https://www.chess.com"]

[Event "Titled Tuesday Blitz March 07 Early 2023"]
[White "Garrido, Denis"]
[Black "Estrada Nieto, Julian"]
[WhiteFideId "601217"]
[BlackFideId "5101018"]
[WhiteElo "2251"]
[BlackElo "2176"]
[Result "1-0"]
[Round "07"]
[TimeControl "180+2"]
[Date "2023.03.07"]
[WhiteClock "0:00:30"]
[BlackClock "0:00:08"]

1. e4 {[%clk 0:03:00]}  e5 {[%clk 0:02:51]} 2. Nf3 {[%clk 0:03:01]}  Nc6 {[%clk 0:02:50]} 3. Bb5 {[%clk 0:03:01]}  a6 {[%clk 0:02:49]} 4. Ba4 {[%clk 0:03:01]}  Nf6 {[%clk 0:02:49]} 5. Nc3 {[%clk 0:03:01]}  b5 {[%clk 0:02:46]} 6. Bb3 {[%clk 0:03:01]}  Bc5 {[%clk 0:02:47]} 7. d3 {[%clk 0:03:00]}  d6 {[%clk 0:02:46]} 8. Nd5 {[%clk 0:03:01]}  h6 {[%clk 0:02:42]} 9. c3 {[%clk 0:03:00]}  O-O {[%clk 0:02:42]} 10. Nxf6+ {[%clk 0:03:00]}  Qxf6 {[%clk 0:02:41]} 11. Bd5 {[%clk 0:03:01]}  Bb7 {[%clk 0:02:33]} 12. g4 {[%clk 0:03:01]}  Qe7 {[%clk 0:01:57]} 13. g5 {[%clk 0:02:58]}  Kh8 {[%clk 0:01:43]} 14. Nh4 {[%clk 0:02:28]}  g6 {[%clk 0:01:32]} 15. Qg4 {[%clk 0:02:05]}  h5 {[%clk 0:01:12]} 16. Qf3 {[%clk 0:01:49]}  Nd8 {[%clk 0:01:04]} 17. Bxb7 {[%clk 0:01:40]}  Nxb7 {[%clk 0:01:04]} 18. Rg1 {[%clk 0:01:38]}  Kh7 {[%clk 0:01:02]} 19. Rg3 {[%clk 0:01:32]}  Nd8 {[%clk 0:00:57]} 20. Nf5 {[%clk 0:01:30]}  Qe6 {[%clk 0:00:49]} 21. Rh3 {[%clk 0:01:29]}  d5 {[%clk 0:00:30]} 22. Bd2 {[%clk 0:01:00]}  dxe4 {[%clk 0:00:16]} 23. dxe4 {[%clk 0:01:00]}  Nb7 {[%clk 0:00:13]} 24. b3 {[%clk 0:00:42]}  Nd6 {[%clk 0:00:13]} 25. O-O-O {[%clk 0:00:31]}  gxf5 {[%clk 0:00:12]} 26. Qxh5+ {[%clk 0:00:30]}  Kg7 {[%clk 0:00:08]} 27. Qh7# {[%clk 0:00:30]} 1-0


[Site "https://www.chess.com"]

[Event "Titled Tuesday Blitz March 07 Early 2023"]
[White "Tagliati, Eleonore"]
[Black "Erzhanov, Arman"]
[WhiteFideId "45172234"]
[BlackFideId "4138821"]
[WhiteElo "2241"]
[BlackElo "2138"]
[Result "0-1"]
[Round "07"]
[TimeControl "180+2"]
[Date "2023.03.07"]
[WhiteClock "0:02:47"]
[BlackClock "0:02:35"]

1. e4 {[%clk 0:03:00]}  d6 {[%clk 0:02:38]} 2. d4 {[%clk 0:03:00]}  Nf6 {[%clk 0:02:38]} 3. Bd3 {[%clk 0:03:00]}  e5 {[%clk 0:02:37]} 4. c3 {[%clk 0:02:53]}  d5 {[%clk 0:02:38]} 5. dxe5 {[%clk 0:02:51]}  Nxe4 {[%clk 0:02:38]} 6. Bxe4 {[%clk 0:02:51]}  dxe4 {[%clk 0:02:38]} 7. Qxd8+ {[%clk 0:02:52]}  Kxd8 {[%clk 0:02:38]} 8. Nd2 {[%clk 0:02:52]}  Nc6 {[%clk 0:02:35]} 9. Nxe4 {[%clk 0:02:50]}  Nxe5 {[%clk 0:02:35]} 10. Bf4 {[%clk 0:02:47]}  Nd3+ {[%clk 0:02:35]} 0-1


[Site "https://www.chess.com"]

[Event "Titled Tuesday Blitz March 07 Early 2023"]
[White "Samarth, J Rao"]
[Black "TimGrutter03"]
[WhiteFideId "46652370"]
[WhiteElo "1564"]
[BlackElo "2495"]
[Result "0-1"]
[Round "07"]
[TimeControl "180+2"]
[Date "2023.03.07"]
[WhiteClock "0:00:03"]
[BlackClock "0:00:52"]

1. c4 {[%clk 0:02:57]}  Nf6 {[%clk 0:02:59]} 2. Nc3 {[%clk 0:02:57]}  g6 {[%clk 0:03:00]} 3. d4 {[%clk 0:02:57]}  Bg7 {[%clk 0:02:59]} 4. e4 {[%clk 0:02:58]}  d6 {[%clk 0:02:59]} 5. h3 {[%clk 0:02:56]}  O-O {[%clk 0:02:59]} 6. Be3 {[%clk 0:02:57]}  e5 {[%clk 0:02:59]} 7. d5 {[%clk 0:02:56]}  c6 {[%clk 0:02:56]} 8. g4 {[%clk 0:02:57]}  cxd5 {[%clk 0:02:54]} 9. cxd5 {[%clk 0:02:57]}  a5 {[%clk 0:02:44]} 10. f3 {[%clk 0:02:53]}  Na6 {[%clk 0:02:44]} 11. Nge2 {[%clk 0:02:51]}  h5 {[%clk 0:02:40]} 12. Ng3 {[%clk 0:02:44]}  h4 {[%clk 0:02:39]} 13. Nge2 {[%clk 0:02:35]}  Nd7 {[%clk 0:02:36]} 14. Rg1 {[%clk 0:02:22]}  g5 {[%clk 0:02:31]} 15. Qd2 {[%clk 0:02:20]}  Bf6 {[%clk 0:02:25]} 16. Nc1 {[%clk 0:02:19]}  Ndc5 {[%clk 0:02:24]} 17. Nd3 {[%clk 0:02:12]}  Nxd3+ {[%clk 0:02:24]} 18. Bxd3 {[%clk 0:02:11]}  Bd7 {[%clk 0:02:23]} 19. Bb5 {[%clk 0:02:10]}  Rc8 {[%clk 0:02:16]} 20. Bxd7 {[%clk 0:02:09]}  Qxd7 {[%clk 0:02:16]} 21. a3 {[%clk 0:02:06]}  b5 {[%clk 0:02:13]} 22. Qd3 {[%clk 0:02:00]}  Rb8 {[%clk 0:02:09]} 23. Qd2 {[%clk 0:01:57]}  b4 {[%clk 0:01:57]} 24. axb4 {[%clk 0:01:54]}  Nxb4 {[%clk 0:01:58]} 25. Bxg5 {[%clk 0:01:50]}  Nd3+ {[%clk 0:01:49]} 26. Qxd3 {[%clk 0:01:47]}  Bxg5 {[%clk 0:01:49]} 27. Qe2 {[%clk 0:01:32]}  Qa7 {[%clk 0:01:43]} 28. Kf1 {[%clk 0:01:29]}  Rb3 {[%clk 0:01:24]} 29. Kg2 {[%clk 0:01:17]}  Rfb8 {[%clk 0:01:19]} 30. Rgb1 {[%clk 0:01:10]}  Be3 {[%clk 0:01:07]} 31. Ra3 {[%clk 0:00:55]}  Bd4 {[%clk 0:00:57]} 32. Rxb3 {[%clk 0:00:51]}  Rxb3 {[%clk 0:00:58]} 33. Qc4 {[%clk 0:00:21]}  Qb7 {[%clk 0:00:58]} 34. Qc6 {[%clk 0:00:20]}  Rxb2+ {[%clk 0:00:57]} 35. Ne2 {[%clk 0:00:09]}  Rxe2+ {[%clk 0:00:52]} 36. Kf1 {[%clk 0:00:09]}  Rf2+ {[%clk 0:00:52]} 37. Ke1 {[%clk 0:00:03]}  Qxb1+ {[%clk 0:00:52]} 38. Qc1 {[%clk 0:00:03]}  Qxc1# {[%clk 0:00:52]} 0-1


[Site "https://www.chess.com"]

[Event "Titled Tuesday Blitz March 07 Early 2023"]
[White "Goltseva, Ekaterina"]
[Black "Delorme, Alban"]
[WhiteFideId "24173770"]
[BlackFideId "623636"]
[WhiteElo "2200"]
[BlackElo "2196"]
[Result "0-1"]
[Round "07"]
[TimeControl "180+2"]
[Date "2023.03.07"]
[WhiteClock "0:01:30"]
[BlackClock "0:01:19"]

1. b3 {[%clk 0:03:00]}  Nf6 {[%clk 0:02:59]} 2. Bb2 {[%clk 0:03:00]}  g6 {[%clk 0:02:59]} 3. Nf3 {[%clk 0:03:01]}  Bg7 {[%clk 0:02:58]} 4. g3 {[%clk 0:03:01]}  O-O {[%clk 0:02:57]} 5. Bg2 {[%clk 0:03:01]}  d5 {[%clk 0:02:58]} 6. O-O {[%clk 0:02:59]}  c5 {[%clk 0:02:57]} 7. d4 {[%clk 0:02:58]}  Ne4 {[%clk 0:02:55]} 8. Nbd2 {[%clk 0:02:53]}  Nxd2 {[%clk 0:02:52]} 9. Qxd2 {[%clk 0:02:52]}  Nc6 {[%clk 0:02:51]} 10. Rfd1 {[%clk 0:02:50]}  Bg4 {[%clk 0:02:47]} 11. Ne5 {[%clk 0:02:39]}  Nxe5 {[%clk 0:02:29]} 12. dxe5 {[%clk 0:02:24]}  d4 {[%clk 0:02:28]} 13. f3 {[%clk 0:02:15]}  Be6 {[%clk 0:02:19]} 14. f4 {[%clk 0:02:10]}  Rb8 {[%clk 0:02:08]} 15. e3 {[%clk 0:02:03]}  dxe3 {[%clk 0:02:07]} 16. Qxe3 {[%clk 0:02:04]}  Qc7 {[%clk 0:02:07]} 17. c4 {[%clk 0:01:55]}  Rfd8 {[%clk 0:02:01]} 18. Bd5 {[%clk 0:01:55]}  Bg4 {[%clk 0:01:56]} 19. Rd2 {[%clk 0:01:52]}  e6 {[%clk 0:01:56]} 20. Bg2 {[%clk 0:01:48]}  Rxd2 {[%clk 0:01:52]} 21. Qxd2 {[%clk 0:01:49]}  Rd8 {[%clk 0:01:52]} 22. Qe3 {[%clk 0:01:45]}  h5 {[%clk 0:01:40]} 23. h3 {[%clk 0:01:41]}  Bf5 {[%clk 0:01:40]} 24. Qe2 {[%clk 0:01:30]}  b5 {[%clk 0:01:19]} 0-1


[Site "https://www.chess.com"]

[Event "Titled Tuesday Blitz March 07 Early 2023"]
[White "Begunov, Konstantin"]
[Black "Belov, Alexei"]
[WhiteFideId "4118510"]
[BlackFideId "4128206"]
[WhiteElo "2079"]
[BlackElo "2562"]
[Result "1-0"]
[Round "07"]
[TimeControl "180+2"]
[Date "2023.03.07"]
[WhiteClock "0:00:14"]
[BlackClock "0:00:16"]

1. d4 {[%clk 0:03:00]}  e6 {[%clk 0:03:00]} 2. c4 {[%clk 0:03:01]}  d5 {[%clk 0:03:00]} 3. Nc3 {[%clk 0:03:01]}  Be7 {[%clk 0:03:00]} 4. cxd5 {[%clk 0:03:00]}  exd5 {[%clk 0:03:00]} 5. Nf3 {[%clk 0:03:00]}  c6 {[%clk 0:03:00]} 6. Qc2 {[%clk 0:02:59]}  g6 {[%clk 0:03:00]} 7. Bf4 {[%clk 0:02:59]}  Bf5 {[%clk 0:03:00]} 8. Qd2 {[%clk 0:02:59]}  Nf6 {[%clk 0:02:59]} 9. e3 {[%clk 0:02:59]}  Nbd7 {[%clk 0:02:59]} 10. Bd3 {[%clk 0:02:53]}  Bxd3 {[%clk 0:02:59]} 11. Qxd3 {[%clk 0:02:54]}  O-O {[%clk 0:02:58]} 12. O-O {[%clk 0:02:54]}  Re8 {[%clk 0:02:58]} 13. Rab1 {[%clk 0:02:50]}  a5 {[%clk 0:02:57]} 14. Rfe1 {[%clk 0:02:48]}  Nh5 {[%clk 0:02:40]} 15. Bh6 {[%clk 0:02:45]}  Bf8 {[%clk 0:02:38]} 16. Bxf8 {[%clk 0:02:43]}  Nxf8 {[%clk 0:02:38]} 17. a3 {[%clk 0:02:30]}  Nf6 {[%clk 0:02:34]} 18. b4 {[%clk 0:02:29]}  axb4 {[%clk 0:02:33]} 19. axb4 {[%clk 0:02:30]}  Ne4 {[%clk 0:02:20]} 20. Nd2 {[%clk 0:02:21]}  Nxd2 {[%clk 0:02:14]} 21. Qxd2 {[%clk 0:02:21]}  b5 {[%clk 0:02:14]} 22. e4 {[%clk 0:02:16]}  dxe4 {[%clk 0:02:13]} 23. Nxe4 {[%clk 0:02:13]}  Ne6 {[%clk 0:02:11]} 24. Rbd1 {[%clk 0:02:06]}  Nc7 {[%clk 0:02:03]} 25. Qf4 {[%clk 0:01:56]}  Nd5 {[%clk 0:02:00]} 26. Qh6 {[%clk 0:01:54]}  Qe7 {[%clk 0:01:46]} 27. h4 {[%clk 0:01:46]}  Qf8 {[%clk 0:01:32]} 28. Qg5 {[%clk 0:01:37]}  f5 {[%clk 0:01:21]} 29. Nc5 {[%clk 0:01:24]}  Qf7 {[%clk 0:01:08]} 30. Re5 {[%clk 0:01:05]}  Nxb4 {[%clk 0:01:00]} 31. Rde1 {[%clk 0:00:57]}  Nc2 {[%clk 0:00:58]} 32. Re7 {[%clk 0:00:49]}  Ra1 {[%clk 0:00:34]} 33. Rxf7 {[%clk 0:00:29]}  Rexe1+ {[%clk 0:00:30]} 34. Kh2 {[%clk 0:00:29]}  Kxf7 {[%clk 0:00:31]} 35. Nd3 {[%clk 0:00:20]}  Re7 {[%clk 0:00:27]} 36. Ne5+ {[%clk 0:00:20]}  Ke6 {[%clk 0:00:27]} 37. Qd2 {[%clk 0:00:16]}  Ra2 {[%clk 0:00:20]} 38. Qc3 {[%clk 0:00:14]}  Ra4 {[%clk 0:00:16]} 39. Qxc6# {[%clk 0:00:14]} 1-0


[Site "https://www.chess.com"]

[Event "Titled Tuesday Blitz March 07 Early 2023"]
[White "Rodchenkov, Sergey D."]
[Black "Benaddi, Mouhcine"]
[WhiteFideId "4168712"]
[BlackFideId "9001050"]
[WhiteElo "2277"]
[BlackElo "2036"]
[Result "0-1"]
[Round "07"]
[TimeControl "180+2"]
[Date "2023.03.07"]
[WhiteClock "0:00:06"]
[BlackClock "0:00:17"]

1. e4 {[%clk 0:03:00]}  c6 {[%clk 0:03:00]} 2. d4 {[%clk 0:02:59]}  d5 {[%clk 0:02:59]} 3. exd5 {[%clk 0:03:00]}  cxd5 {[%clk 0:02:58]} 4. Bd3 {[%clk 0:03:00]}  Nc6 {[%clk 0:02:58]} 5. c3 {[%clk 0:03:01]}  Qc7 {[%clk 0:02:57]} 6. Nf3 {[%clk 0:02:50]}  Bg4 {[%clk 0:02:55]} 7. Nbd2 {[%clk 0:02:40]}  Nf6 {[%clk 0:02:53]} 8. Qb3 {[%clk 0:02:38]}  Bxf3 {[%clk 0:02:33]} 9. Nxf3 {[%clk 0:02:37]}  e6 {[%clk 0:02:33]} 10. O-O {[%clk 0:02:35]}  Bd6 {[%clk 0:02:34]} 11. Qc2 {[%clk 0:02:32]}  h6 {[%clk 0:02:33]} 12. Re1 {[%clk 0:02:30]}  O-O {[%clk 0:02:33]} 13. Qe2 {[%clk 0:02:24]}  Rfe8 {[%clk 0:02:29]} 14. Ne5 {[%clk 0:02:22]}  Bxe5 {[%clk 0:02:21]} 15. dxe5 {[%clk 0:02:23]}  Nd7 {[%clk 0:02:22]} 16. f4 {[%clk 0:01:23]}  Nc5 {[%clk 0:02:01]} 17. Bb1 {[%clk 0:01:18]}  Rad8 {[%clk 0:01:49]} 18. Be3 {[%clk 0:00:57]}  d4 {[%clk 0:01:49]} 19. cxd4 {[%clk 0:00:51]}  Nxd4 {[%clk 0:01:48]} 20. Qf2 {[%clk 0:00:51]}  Qa5 {[%clk 0:01:19]} 21. Rf1 {[%clk 0:00:33]}  Qb4 {[%clk 0:00:52]} 22. a3 {[%clk 0:00:27]}  Qc4 {[%clk 0:00:48]} 23. Ba2 {[%clk 0:00:26]}  Qa4 {[%clk 0:00:34]} 24. Rad1 {[%clk 0:00:20]}  Ncb3 {[%clk 0:00:29]} 25. Rd3 {[%clk 0:00:18]}  Rd5 {[%clk 0:00:20]} 26. Rfd1 {[%clk 0:00:18]}  Red8 {[%clk 0:00:20]} 27. g3 {[%clk 0:00:18]}  Nf3+ {[%clk 0:00:19]} 28. Qxf3 {[%clk 0:00:18]}  Rxd3 {[%clk 0:00:19]} 29. Rf1 {[%clk 0:00:18]}  Nd4 {[%clk 0:00:17]} 30. Qf2 {[%clk 0:00:18]}  Nf5 {[%clk 0:00:15]} 31. Bc5 {[%clk 0:00:16]}  Rd2 {[%clk 0:00:15]} 32. Qf3 {[%clk 0:00:15]}  Qc6 {[%clk 0:00:16]} 33. Qxc6 {[%clk 0:00:10]}  bxc6 {[%clk 0:00:17]} 34. Bb4 {[%clk 0:00:09]}  Rxb2 {[%clk 0:00:17]} 35. Bc4 {[%clk 0:00:09]}  Ne3 {[%clk 0:00:16]} 36. Rc1 {[%clk 0:00:08]}  Nxc4 {[%clk 0:00:16]} 37. Rxc4 {[%clk 0:00:06]}  Rd1+ {[%clk 0:00:17]} 0-1


[Site "https://www.chess.com"]